bitfinex/quotes_ETHUSD_20260202
["timestamp","ask_amount","ask_price","bid_price","bid_amount"]
[1770062773795,0.0011,2338.2,2337.2,3.0599481]
[1770062774234,0.0011,2338.2,2337.3,4.710105]
[1770062774630,0.0019032,2339.2,2337.7,12.60103278]
[1770062774854,0.0019032,2339.2,2337.9,2.146]
[1770062775232,0.0019032,2339.2,2337.9,0.1024]
[1770062775433,0.0019032,2339.2,2338.0,6.36604]
[1770062775657,0.0019032,2339.2,2338.1,1.06924425]
[1770062776066,0.0011,2339.5,2338.4,0.1024]
[1770062776352,0.0011,2339.5,2338.5,11.711764]
[1770062776555,0.0011,2339.5,2338.5,10.467]
[1770062776720,0.0011,2339.5,2338.6,2.31704328]
[1770062776921,0.0011,2339.5,2338.7,0.897]
[1770062777128,0.0011,2339.7,2338.7,0.897]
[1770062777854,0.0011,2339.7,2338.8,1.06892423]
[1770062782128,0.0011,2339.7,2339.0,0.01710608]
[1770062782355,0.0011,2339.7,2339.4,0.01710608]
[1770062782659,0.1146221,2340.0,2339.4,0.01710608]
[1770062782850,12.22141521,2340.9,2339.9,0.01710608]
[1770062783056,4.26969086,2342.1,2340.4,0.01710608]
[1770062783284,0.000804,2341.6,2340.7,0.01710608]
[1770062783570,0.0008048,2342.4,2340.7,0.01710608]
[1770062783571,0.0008048,2342.4,2341.5,0.01710608]
[1770062783729,12.22222001,2342.4,2341.2,1.06778871]
[1770062783926,1.222222,2342.3,2341.3,0.01710608]
[1770062784327,1.222222,2342.3,2341.2,1.08489479]
[1770062784562,1.222222,2342.3,2341.3,0.01710608]
[1770062784726,0.0008048,2342.4,2341.3,0.01710608]
[1770062785160,0.0008048,2342.4,2341.1,4.27146434]
[1770062785161,12.22222001,2342.4,2340.3,0.01710608]
[1770062785459,12.22222001,2342.4,2341.3,0.01710608]
[1770062785827,0.0008048,2342.4,2341.6,0.01710608]
[1770062786029,0.0008048,2342.4,2341.9,0.01710608]
[1770062786232,0.0008048,2342.4,2341.6,0.01710608]
[1770062786658,12.22222001,2342.4,2341.4,1.06773725]
[1770062786864,13.28950367,2342.4,2341.4,0.01710608]
[1770062787032,12.22222001,2342.4,2341.4,0.01710608]
[1770062787366,12.22222001,2342.4,2341.7,0.01710608]
[1770062787367,0.0008048,2342.4,2341.7,0.01710608]
[1770062787767,0.0008048,2342.4,2341.7,1.06758028]
[1770062787936,0.0008048,2342.4,2341.6,1.06762423]
[1770062788296,0.0008048,2342.4,2341.2,4.27126497]
[1770062788297,12.22222001,2342.4,2341.2,4.27126497]
[1770062788438,1.222222,2342.3,2341.7,1.06759423]
[1770062788781,13.44363721,2342.3,2341.3,1.06777774]
[1770062788994,13.44363721,2342.3,2341.5,1.0676554]
[1770062789290,13.44363721,2342.3,2341.5,1.06765171]
[1770062789489,13.44363721,2342.3,2341.2,0.01710608]
[1770062789785,14.63325706,2342.2,2340.8,1.06801093]
[1770062789956,13.56585941,2342.2,2341.0,0.01710608]
[1770062791799,14.63323489,2342.2,2341.0,0.01710608]
[1770062791972,14.63323489,2342.2,2341.0,1.06788896]
[1770062792297,14.63323624,2342.2,2341.0,1.08499504]
[1770062792496,1.46332362,2342.1,2341.0,1.08499504]
[1770062792688,12.22141521,2342.1,2341.0,1.08499504]
[1770062793574,12.22141521,2342.1,2340.4,5.28754982]
[1770062793575,12.22141521,2342.1,2340.4,4.27271876]
[1770062793904,2.41182103,2342.2,2340.6,1.06806963]
[1770062793905,12.22141521,2341.9,2340.6,1.06806963]
[1770062794202,12.22141521,2341.9,2340.8,0.01710608]
[1770062794378,2.41183863,2342.2,2341.1,0.01710608]
[1770062794566,1.89026251,2342.1,2340.8,0.01710608]
[1770062795797,1.0674637,2342.0,2340.2,4.27313561]
[1770062796012,12.22141521,2341.9,2340.3,0.01710608]
[1770062796169,12.22141521,2341.9,2340.2,1.06828476]
[1770062796499,12.22141521,2341.7,2340.2,1.60415481]
[1770062796687,12.22141521,2341.7,2340.2,1.62126089]
[1770062796891,12.22141521,2341.7,2340.2,1.60415481]
[1770062797092,12.22141521,2341.7,2340.1,1.0683023]
[1770062797408,12.22141521,2341.7,2340.1,1.08540838]
[1770062797901,12.22141521,2341.5,2340.1,0.01710608]
[1770062798102,12.22141521,2341.5,2339.8,0.01710608]
[1770062798313,12.22141521,2341.3,2339.7,4.27395059]
[1770062798472,12.22141521,2341.3,2340.1,1.068327]
[1770062798672,12.22141521,2341.3,2339.9,1.06838539]
[1770062799003,12.22141521,2341.3,2340.0,1.06837018]
[1770062799175,12.22141521,2341.3,2340.0,1.0683453]
[1770062799497,13.44355673,2341.2,2340.1,1.06832632]
[1770062799900,13.28928928,2341.1,2340.1,1.06832632]
[1770062800198,13.28928928,2341.1,2339.9,1.06841832]
[1770062800506,13.28928928,2341.1,2340.0,1.06837076]
[1770062800686,13.28928928,2341.1,2339.9,1.0683922]
[1770062800996,12.22141521,2340.9,2339.9,1.06841663]
[1770062801198,12.22141521,2340.9,2339.9,1.06838841]
[1770062801602,12.22141521,2340.9,2340.0,1.06835925]
[1770062801897,1.22214152,2341.2,2340.0,1.06835925]
[1770062802099,0.22899428,2341.1,2340.1,0.53591216]
[1770062803376,0.22899428,2341.1,2340.0,1.08546533]
[1770062803576,12.45040949,2341.1,2340.0,1.06835925]
[1770062803775,12.45040949,2341.1,2339.8,1.06843136]
[1770062803995,12.45040949,2341.1,2339.4,1.06865008]
[1770062803996,12.22141521,2340.9,2339.4,1.06865008]
[1770062804374,12.22141521,2340.9,2339.6,0.01710608]
[1770062804687,1.06791969,2341.0,2339.6,0.01710608]
[1770062804688,13.5503487,2340.8,2339.6,0.01710608]
[1770062804888,13.5503487,2340.8,2339.4,1.08575616]
[1770062805270,14.4463487,2340.8,2339.3,1.06866795]
[1770062805472,14.4463487,2340.8,2339.2,4.2756567]
[1770062805473,12.22141521,2340.4,2339.2,0.0008048]
[1770062805702,12.22141521,2340.2,2339.2,1.0695064]
[1770062805903,12.22141521,2340.2,2339.2,0.0008048]
[1770062806202,13.2897272,2340.2,2339.2,0.0008048]
[1770062807702,4.27264164,2340.5,2339.3,0.01710608]
[1770062808015,1.75622047,2340.4,2339.2,0.0008048]
[1770062808192,12.22141521,2340.6,2339.3,0.01710608]
[1770062808700,0.896,2340.8,2339.6,0.01710608]
[1770062808904,0.22899428,2341.1,2339.9,0.01710608]
[1770062809215,11.81295762,2341.2,2339.5,0.01710608]
[1770062809413,0.0011,2341.9,2340.6,0.01710608]
[1770062809708,0.0011,2341.9,2340.3,0.01710608]
[1770062809709,12.88157305,2341.9,2340.2,0.91310608]
[1770062809910,11.81295762,2341.7,2340.3,1.11833339]
[1770062810075,11.79053045,2341.5,2340.1,1.06833041]
[1770062810279,11.79053045,2341.5,2340.2,0.01710608]
[1770062810476,11.79053045,2341.3,2339.8,1.06845947]
[1770062810817,11.79053045,2341.1,2339.5,1.06856654]
[1770062810984,11.79053045,2340.9,2339.5,1.06857311]
[1770062811184,11.79053045,2340.7,2339.4,1.06961584]
[1770062811516,11.79053045,2340.7,2339.7,1.0685053]
[1770062811881,11.79053045,2340.7,2339.9,1.06842051]
[1770062812101,2.16582336,2340.8,2340.0,1.06837114]
[1770062812282,0.896,2340.8,2340.0,1.06837114]
[1770062812478,0.896,2340.8,2339.9,1.0683909]
[1770062812683,0.896,2340.8,2339.9,1.06841466]
[1770062813782,1.0677557,2341.4,2339.9,1.08552074]
[1770062814012,0.90797746,2341.3,2339.9,1.08552074]
[1770062814210,16.06137182,2341.5,2340.1,1.06833041]
[1770062814211,12.858236,2341.5,2340.1,1.06833041]
[1770062814412,0.90823461,2341.4,2340.1,1.06833041]
[1770062814611,12.858236,2341.5,2340.1,1.06833041]
[1770062814825,0.90823861,2341.4,2340.1,1.06833041]
[1770062815044,12.858236,2341.5,2340.0,1.60429015]
[1770062815240,11.79053045,2341.2,2340.0,1.0683727]
[1770062815546,11.79053045,2341.0,2339.4,0.001]
[1770062815841,11.79053045,2341.0,2339.8,1.06846578]
[1770062816142,1.06801093,2340.8,2339.4,0.001]
[1770062816345,11.79053045,2340.9,2339.5,0.01710608]
[1770062816642,1.28584715,2340.8,2339.4,0.001]
[1770062816842,1.28584715,2340.8,2339.5,0.01710608]
[1770062817245,1.06780682,2341.3,2339.8,0.01710608]
[1770062817447,12.69985656,2341.2,2339.4,0.001]
[1770062817624,0.90932611,2341.1,2339.6,0.01710608]
[1770062817812,11.79053045,2341.2,2339.6,0.01710608]
[1770062818142,0.9093206,2341.1,2339.7,1.06851305]
[1770062818347,1.2699851,2341.0,2339.8,0.53596714]
[1770062818543,13.06051555,2341.0,2339.8,0.53596714]
[1770062818744,13.06051555,2341.0,2339.7,1.06851305]
[1770062818921,12.70052654,2340.9,2339.7,1.06851305]
[1770062819130,0.90999609,2340.8,2339.7,1.06851305]
[1770062819338,11.79053045,2340.9,2339.7,1.06851305]
[1770062819518,0.91038353,2340.8,2339.7,1.06851305]
[1770062819718,1.2700914,2340.7,2339.7,2.03192145]
[1770062820249,1.2700914,2340.7,2339.7,1.06851305]
[1770062820452,1.2700914,2340.7,2339.4,0.001]
[1770062820453,14.73125957,2340.6,2339.4,0.001]
[1770062820636,14.73125957,2340.6,2338.8,0.001]
[1770062820637,11.79053045,2340.2,2338.8,0.001]
[1770062820837,11.79053045,2339.7,2338.3,0.0008032]
[1770062821037,11.79053045,2339.7,2338.4,1.06910708]
[1770062821038,0.91072613,2339.6,2338.4,1.06910708]
[1770062821240,0.91072613,2339.5,2338.4,1.06910708]
[1770062821426,0.896,2339.7,2338.6,0.01710608]
[1770062821627,12.99294053,2340.1,2338.7,0.01710608]
[1770062821845,14.11339796,2340.0,2338.5,0.01710608]
[1770062822043,12.70069475,2339.9,2338.4,1.06910708]
[1770062822352,12.70069475,2339.9,2338.3,4.27723152]
[1770062822353,11.79053045,2339.6,2338.6,0.001]
[1770062822552,14.33722779,2340.0,2338.6,0.001]
[1770062822738,13.2032248,2340.0,2338.6,0.001]
[1770062823054,1.42715635,2339.9,2338.7,0.01710608]
[1770062823550,1.42715635,2339.9,2338.8,0.01710608]
[1770062823849,12.92453344,2340.1,2338.6,0.001]
[1770062824049,0.91029418,2340.0,2338.7,0.01710608]
[1770062824220,0.91056185,2339.9,2338.6,0.001]
[1770062824418,12.7010923,2339.8,2338.6,0.001]
[1770062824649,12.7010923,2339.7,2338.6,0.001]
[1770062824849,11.79053045,2339.5,2338.6,0.001]
[1770062825019,13.83509529,2339.4,2338.4,0.001]
[1770062825233,11.79053045,2339.2,2338.4,0.001]
[1770062825433,1.13400299,2339.5,2338.4,0.001]
[1770062825634,13.83439347,2339.5,2338.4,0.001]
[1770062825875,14.46325041,2339.4,2338.4,0.001]
[1770062826083,0.90986003,2339.3,2338.4,0.001]
[1770062826242,1.06874145,2339.2,2338.4,0.001]
[1770062826436,0.90960436,2339.1,2338.4,0.001]
[1770062826765,11.79053045,2339.2,2338.4,0.001]
[1770062826963,1.28592719,2339.1,2338.4,0.001]
[1770062827438,1.06869955,2339.3,2338.4,0.001]
[1770062827639,13.75516621,2339.5,2338.4,0.001]
[1770062827839,0.9093113,2339.4,2338.4,0.001]
[1770062828064,12.69984175,2339.3,2338.4,0.001]
[1770062828360,11.79053045,2339.1,2338.3,0.0008032]
[1770062828544,1.37681946,2339.0,2338.3,0.0008032]
[1770062829066,13.16734991,2339.0,2337.8,0.001]
[1770062830333,12.85940898,2338.9,2337.8,0.001]
[1770062830539,0.896,2338.8,2337.8,0.001]
[1770062832165,0.896,2339.6,2337.9,0.01710608]
[1770062832367,0.896,2339.6,2338.0,1.06928999]
[1770062832368,1.375508,2339.5,2338.0,1.06928999]
[1770062832695,11.79053045,2339.3,2338.0,1.06928999]
[1770062834278,12.85926663,2339.3,2337.8,0.001]
[1770062836168,12.85926663,2339.3,2338.2,0.001]
[1770062836478,0.0011,2339.1,2338.2,0.001]
[1770062837684,0.0011,2339.3,2338.4,0.01710608]
[1770062838370,0.0011,2339.3,2338.5,1.06906136]
[1770062838893,0.0011,2339.3,2338.2,0.001]
[1770062839059,0.0011,2339.3,2338.2,4.27774292]
[1770062839260,0.0011,2339.3,2338.4,1.0690928]
[1770062840061,0.0011,2339.3,2338.2,0.001]
[1770062840062,12.77759054,2339.3,2338.2,0.001]
[1770062840266,1.06883283,2339.0,2338.2,0.001]
[1770062840518,12.77649054,2338.8,2337.6,0.0008032]
[1770062840669,12.77649054,2338.8,2337.4,0.001]
[1770062840670,12.77649054,2338.4,2337.4,0.001]
[1770062840868,12.77649054,2338.2,2336.9,1.06977135]
[1770062841195,1.7482666,2338.5,2336.8,1.07160804]
[1770062841196,15.16674652,2338.1,2336.8,1.07160804]
[1770062841502,14.25837686,2338.1,2336.9,1.06975146]
[1770062842077,14.25837686,2338.1,2336.8,1.0716106]
[1770062842298,13.8458315,2337.9,2336.8,0.001804]
[1770062842469,14.7418315,2337.9,2336.8,0.001804]
[1770062842668,14.67839272,2337.8,2336.8,0.001804]
[1770062844385,15.74777998,2337.8,2336.8,0.001804]
[1770062844566,14.67839272,2337.8,2336.8,0.001804]
[1770062844969,1.90190218,2337.8,2336.8,0.001804]
[1770062845197,0.896,2337.9,2336.8,0.001804]
[1770062845501,1.96534128,2337.9,2336.8,0.001804]
[1770062845896,0.896,2337.9,2336.8,0.001804]
[1770062846405,14.74183068,2337.9,2336.8,0.001804]
[1770062847600,12.77649054,2337.7,2336.8,0.001804]
[1770062847772,14.14481709,2337.6,2336.8,0.001804]
[1770062847971,1.36832655,2337.6,2336.8,0.001804]
[1770062848192,14.74183068,2337.9,2336.8,0.001804]
[1770062848795,13.67249054,2337.9,2336.8,0.001804]
[1770062848993,0.896,2337.9,2336.8,0.001804]
[1770062849374,0.896,2337.9,2336.9,0.01710608]
[1770062849705,0.896,2337.9,2337.0,0.001]
[1770062850402,13.8454931,2338.7,2337.1,1.08680784]
[1770062850703,14.05413959,2338.6,2337.2,1.77931746]
[1770062851005,13.68513963,2338.5,2337.0,1.07073993]
[1770062851299,2.41165204,2338.6,2337.0,1.07073993]
[1770062851300,13.68513963,2338.4,2337.0,1.07073993]
[1770062851466,1.27764905,2338.6,2337.0,1.07073993]
[1770062851670,0.90876367,2338.5,2337.0,1.07073993]
[1770062851872,0.21864127,2338.4,2337.1,0.53669127]
[1770062852075,0.21864127,2338.4,2337.2,0.01710608]
[1770062852302,0.21864127,2338.4,2337.1,0.53669127]
[1770062852611,14.06426184,2338.4,2337.2,1.06965599]
[1770062852814,0.90897164,2338.3,2337.2,1.06965599]
[1770062853012,1.49732335,2338.2,2337.1,1.06966754]
[1770062854568,2.56653726,2338.2,2337.0,0.001]
[1770062854785,15.3430278,2338.2,2337.0,0.001]
[1770062855522,13.68756092,2338.1,2337.0,0.001]
[1770062855674,12.77649054,2337.7,2336.6,0.001]
[1770062855872,3.19911973,2337.6,2336.6,0.001]
[1770062856082,0.91107038,2337.5,2336.6,0.001]
[1770062856296,12.77649054,2337.3,2336.4,0.001]
[1770062856503,0.91034342,2337.2,2336.4,0.001]
[1770062856679,13.84610415,2337.3,2336.4,0.001]
[1770062856885,2.72266137,2337.2,2336.4,0.001]
[1770062857094,1.81243696,2337.2,2336.4,0.001]
[1770062857975,2.28804935,2337.6,2336.4,0.001]
[1770062858208,0.90994728,2337.5,2336.4,0.001]
[1770062858379,3.35753877,2337.6,2336.4,0.001]
[1770062858718,2.28804935,2337.6,2336.4,0.001]
[1770062858872,0.897,2337.6,2336.4,0.001]
[1770062859397,0.897,2337.6,2336.6,0.01710608]
[1770062859569,12.77649054,2338.1,2336.9,0.01710608]
[1770062859772,12.77649054,2338.1,2336.6,0.01710608]
[1770062859990,12.77649054,2338.1,2336.9,0.01710608]
[1770062860183,1.62400197,2338.0,2336.9,0.01710608]
[1770062860371,1.62400197,2338.0,2336.4,0.001]
[1770062860573,1.06933572,2337.9,2336.6,0.01710608]
[1770062861299,1.62400197,2338.0,2336.6,0.01710608]
[1770062861503,1.49732335,2338.2,2337.0,12.44366579]
[1770062861673,13.84556273,2338.5,2336.7,0.01710608]
[1770062861875,13.68669351,2338.4,2336.7,0.01710608]
[1770062862101,12.77649054,2338.2,2336.7,0.01710608]
[1770062862302,0.91020297,2338.1,2336.7,0.01710608]
[1770062862507,1.36866935,2338.0,2336.8,1.06983909]
[1770062862882,1.36976935,2338.0,2336.8,1.08694517]
[1770062863684,0.0011,2338.0,2336.8,1.06983909]
[1770062865299,0.0011,2338.0,2337.0,12.44366579]
[1770062866078,0.0011,2338.0,2337.3,0.01710608]
[1770062867110,0.0011,2338.0,2337.4,1.06956447]
[1770062868815,12.77649054,2337.8,2336.6,0.001]
[1770062868980,12.77649054,2337.4,2336.6,0.001]
[1770062869186,1.06965599,2337.2,2336.6,0.001]
[1770062869380,1.06965599,2337.2,2336.1,0.0008048]
[1770062869381,0.91287993,2337.1,2336.1,0.0008048]
[1770062869586,0.91287993,2337.0,2336.1,0.0008048]
[1770062870719,0.91287993,2336.9,2336.1,0.0008048]
[1770062871034,0.91287993,2336.8,2336.1,0.0008048]
[1770062871625,13.74174116,2336.8,2336.1,0.0008048]
[1770062871934,13.80589973,2336.7,2335.8,0.001]
[1770062872242,0.91287993,2336.6,2335.8,0.001]
[1770062872414,1.26718967,2336.5,2335.8,0.001]
[1770062872614,12.67189674,2336.4,2335.4,0.0018032]
[1770062872820,0.91287993,2336.3,2335.4,1.07227232]
[1770062873141,0.91287993,2336.2,2335.4,0.0018032]
[1770062873336,1.26718967,2336.2,2335.4,0.0018032]
[1770062873542,1.26718967,2336.5,2335.4,0.0018032]
[1770062873835,12.8930198,2336.8,2335.4,0.0018032]
[1770062874013,0.91150022,2336.7,2335.5,0.01710608]
[1770062874220,3.43540019,2336.9,2335.5,0.01710608]
[1770062874417,0.91122474,2336.8,2335.5,0.01710608]
[1770062874622,0.897,2336.9,2335.8,0.01710608]
[1770062874940,0.91125445,2336.8,2335.5,0.01710608]
[1770062875232,0.28780501,2336.8,2335.6,1.07038876]
[1770062875613,0.897,2336.9,2335.6,1.07138876]
[1770062875817,0.0011,2336.8,2335.6,1.07138876]
[1770062876537,0.0011,2336.8,2335.8,0.01710608]
[1770062876723,0.0011,2336.8,2335.6,1.07138876]
[1770062876930,0.0011,2336.8,2335.8,0.01710608]
[1770062877331,0.0011,2336.8,2335.9,1.07025129]
[1770062877534,0.0011,2336.8,2335.9,2.03521954]
[1770062878512,0.0011,2336.8,2336.0,0.01710608]
[1770062879016,0.0011,2337.0,2336.0,0.01710608]
[1770062879216,0.0011,2337.0,2336.3,0.01710608]
[1770062879446,0.0011,2337.0,2336.4,1.07002225]
[1770062879640,0.0011,2337.0,2336.5,0.53672174]
[1770062880153,0.897,2337.6,2336.5,0.53672174]
[1770062881233,13.7254933,2337.6,2336.5,0.53672174]
[1770062881545,11.75901681,2337.4,2336.1,1.07015966]
[1770062881753,0.90965793,2337.3,2336.1,1.07015966]
[1770062881951,14.85949629,2337.6,2336.1,1.07015966]
[1770062882158,0.90962037,2337.5,2336.3,0.01710608]
[1770062882363,0.897,2337.6,2336.3,0.01710608]
[1770062883417,1.96649562,2337.6,2336.4,1.07002225]
[1770062883617,13.72551243,2337.6,2336.4,1.07002225]
[1770062883819,12.66950919,2337.5,2336.4,1.07002225]
[1770062884055,0.897,2337.6,2336.4,1.07002225]
[1770062884219,1.13510299,2338.0,2336.6,0.01710608]
[1770062884424,1.13510299,2338.0,2336.6,12.3843936]
[1770062884425,0.37310991,2338.0,2336.6,12.3843936]
[1770062884737,0.0011,2338.0,2336.9,0.01710608]
[1770062884938,0.0011,2338.2,2337.3,0.01710608]
[1770062885139,0.0008048,2338.5,2337.3,0.01710608]
[1770062885140,0.0008048,2338.5,2337.6,0.01710608]
[1770062885533,0.0011,2338.9,2337.6,0.01710608]
[1770062885534,0.0011,2338.9,2337.9,0.01710608]
[1770062886050,0.0011,2338.9,2337.7,1.06942721]
[1770062886358,0.0011,2338.9,2337.8,0.53471361]
[1770062886931,0.0011,2338.9,2337.9,0.01710608]
[1770062887653,0.0011,2338.9,2338.0,1.08639607]
[1770062888033,0.0011,2338.9,2338.0,1.06928999]
[1770062889052,0.0011,2338.9,2338.2,0.01710608]
[1770062889229,0.0011,2339.1,2338.5,0.01710608]
[1770062889425,0.001904,2339.2,2338.7,1.06896994]
[1770062889626,0.001904,2339.2,2338.7,1.60516552]
[1770062890355,0.0011,2339.5,2338.7,1.60516552]
[1770062890523,0.0011,2339.5,2338.6,4.27587976]
[1770062890524,11.76011681,2339.5,2338.3,1.06911644]
[1770062890722,11.76011681,2339.5,2338.6,1.0690121]
[1770062891236,11.76011681,2339.5,2338.4,1.06907683]
[1770062891559,12.82876198,2339.5,2338.2,1.06919852]
[1770062891754,12.82876198,2339.5,2338.1,4.29390019]
[1770062891755,12.82876198,2339.5,2338.1,1.06923977]
[1770062891956,11.75901681,2339.3,2337.9,4.27733611]
[1770062892125,11.75901681,2339.3,2338.1,1.0692407]
[1770062892952,11.75901681,2339.3,2338.0,1.06924886]
[1770062893155,11.75901681,2339.3,2338.1,1.06924153]
[1770062893746,12.82775826,2339.2,2337.9,1.06933572]
[1770062893957,13.46928834,2339.1,2337.9,1.06933572]
[1770062895764,14.53807825,2339.1,2337.9,1.06933572]
[1770062896033,1.71027153,2339.1,2337.8,2.50106401]
[1770062896362,1.71030442,2339.4,2337.8,2.51817009]
[1770062896363,2.77898807,2339.4,2337.8,2.51817009]
[1770062896681,14.53797279,2339.4,2337.8,2.51817009]
[1770062896958,13.64936505,2339.4,2337.8,2.51817009]
[1770062897934,13.64936505,2339.4,2337.8,2.50106401]
[1770062898329,11.75901681,2339.2,2337.7,1.06940377]
[1770062898530,11.75901681,2339.2,2337.8,1.06937874]
[1770062899237,13.64938106,2339.4,2337.9,0.01710608]
[1770062899665,13.64936413,2339.4,2337.9,0.01710608]
[1770062899826,12.58071349,2339.4,2338.0,1.06928999]
[1770062900024,11.75901681,2339.4,2338.1,0.5363556]
[1770062900360,0.0011,2339.5,2338.2,0.01710608]
[1770062900737,0.0011,2339.5,2338.5,0.01710608]
[1770062902256,0.0011,2339.3,2338.6,1.06901565]
[1770062902633,0.0011,2339.3,2338.5,4.2760626]
[1770062902634,0.0011,2339.3,2338.5,1.06904886]
[1770062903272,0.0011,2339.3,2338.5,1.60357829]
[1770062905455,0.0011,2339.3,2338.5,1.62068437]
[1770062905942,0.0011,2339.5,2338.7,0.01710608]
[1770062906143,0.0011,2339.5,2338.8,1.06892423]
[1770062906736,0.0008032,2340.0,2339.0,0.01710608]
[1770062907637,0.0008032,2340.0,2339.5,0.01710608]
[1770062907836,0.0011,2340.1,2339.5,0.01710608]
[1770062908069,0.0011,2340.5,2339.7,1.06851305]
[1770062908269,0.0011,2340.5,2339.9,0.01710608]
[1770062908450,0.0011,2340.5,2339.8,0.53596714]
[1770062908839,0.0011,2340.5,2339.9,0.01710608]
[1770062909040,0.0008032,2340.7,2339.8,1.43196714]
[1770062909240,0.0008032,2340.7,2339.9,0.01710608]
[1770062909542,0.0008032,2340.7,2339.9,0.26886471]
[1770062910179,0.0008032,2340.7,2340.0,1.06837606]
[1770062910541,0.0011,2341.4,2340.0,1.06837606]
[1770062910542,0.0011,2341.4,2340.6,0.01710608]
[1770062910740,0.0011,2341.4,2340.6,0.91310608]
[1770062911350,0.0019048,2341.6,2340.6,0.91310608]
[1770062911677,0.0019048,2341.6,2340.3,10.31732935]
[1770062911678,13.64160206,2341.6,2340.7,1.30353041]
[1770062911980,13.64159688,2341.6,2340.0,1.06837606]
[1770062912283,0.0019048,2341.6,2340.2,0.01710608]
[1770062912641,12.57204385,2341.5,2340.1,0.896]
[1770062912843,12.57204385,2341.5,2339.9,1.32014514]
[1770062913146,12.57204385,2341.5,2339.9,1.33725122]
[1770062913353,1.36415975,2341.4,2340.0,0.61470643]
[1770062913539,13.9362036,2341.4,2340.0,0.61470643]
[1770062914165,13.6398267,2341.3,2340.1,1.06833041]
[1770062915457,12.57204385,2341.3,2340.1,1.06833041]
[1770062916171,13.63985338,2341.3,2340.1,1.06833041]
[1770062916344,1.92760793,2341.2,2340.1,1.06833041]
[1770062916545,12.57204385,2340.7,2339.0,12.12219799]
[1770062916766,12.57204385,2340.7,2339.5,4.2743847]
[1770062916965,12.57204385,2340.7,2339.6,1.0685261]
[1770062917160,1.25891499,2340.6,2339.6,1.0685261]
[1770062917365,1.25891499,2340.6,2339.5,1.06857932]
[1770062917555,1.25891499,2340.6,2339.6,1.06855388]
[1770062917754,13.83095884,2340.6,2339.2,4.27484395]
[1770062917950,13.83095884,2340.6,2338.9,17.29370885]
[1770062918170,1.38309588,2340.5,2339.1,4.27514843]
[1770062918952,0.896,2340.9,2339.3,0.01710608]
[1770062919149,0.896,2340.9,2339.3,12.13930407]
[1770062919352,12.57204385,2341.0,2339.3,12.13930407]
[1770062919673,2.99544124,2341.2,2339.6,12.13930407]
[1770062919858,15.56748509,2341.2,2339.2,12.12219799]
[1770062920060,12.57204385,2341.0,2339.3,2.66975697]
[1770062920277,1.06796531,2340.9,2339.4,1.06865008]
[1770062920675,1.98387748,2341.1,2339.4,13.19084807]
[1770062920881,1.06779988,2341.3,2339.6,12.13930407]
[1770062921180,0.0011,2341.4,2340.2,0.1024]
[1770062921347,0.0011,2341.4,2340.9,0.01710608]
[1770062921993,0.0019048,2341.6,2341.2,0.01710608]
[1770062922151,0.0019048,2341.6,2341.3,1.06778285]
[1770062922566,0.0011,2341.9,2341.3,1.62049708]
[1770062923049,0.0008048,2342.4,2341.6,0.01710608]
[1770062924042,0.0008048,2342.4,2341.7,0.01710608]
[1770062924246,0.0008048,2342.4,2341.8,1.06755487]
[1770062924446,0.0008048,2342.4,2341.6,1.06762482]
[1770062924852,0.0008048,2342.4,2341.5,1.06766456]
[1770062925057,0.0008048,2342.4,2341.7,1.0675952]
[1770062926262,0.0008048,2342.4,2341.7,1.08470128]
[1770062926642,0.0008048,2342.4,2341.6,1.06762441]
[1770062926848,0.0008048,2342.4,2341.3,4.27098713]
[1770062927057,0.0008048,2342.4,2341.5,1.06768045]
[1770062927278,1.25819966,2342.4,2341.5,1.06768045]
[1770062927675,0.0011,2342.6,2342.1,0.01710608]
[1770062927875,0.0008056,2343.1,2341.8,0.01710608]
[1770062928047,0.0008056,2343.1,2342.2,0.01710608]
[1770062928246,0.0008056,2343.1,2342.3,1.08443306]
[1770062928448,0.0008056,2343.1,2342.3,1.06732698]
[1770062928649,0.0008056,2343.1,2342.3,0.53368797]
[1770062928865,0.0011,2342.9,2342.1,1.0673849]
[1770062929199,0.0011,2342.9,2341.8,4.27014011]
[1770062929476,0.0011,2342.9,2342.0,1.0674578]
[1770062929697,0.0011,2342.9,2342.1,1.06739672]
[1770062930000,0.0011,2342.9,2342.0,1.06744123]
[1770062930155,1.22147808,2342.9,2341.7,1.06760046]
[1770062930502,1.22147808,2342.9,2341.2,0.01710608]
[1770062930503,12.12211995,2342.6,2340.6,12.64110503]
[1770062930665,12.12211995,2342.6,2340.7,12.64110503]
[1770062930978,0.0011,2342.9,2342.2,0.01710608]
[1770062931146,12.12292395,2343.8,2342.8,0.01710608]
[1770062931147,0.000804,2343.8,2342.8,0.01710608]
[1770062931350,0.000804,2343.8,2342.5,0.01710608]
[1770062931351,0.000804,2343.8,2342.5,12.64110503]
[1770062931568,13.1895887,2343.8,2342.0,12.64110503]
[1770062931777,13.86773638,2343.7,2342.1,1.2641105]
[1770062932079,13.86773638,2343.7,2341.7,0.896]
[1770062932268,12.12211995,2343.5,2341.8,1.06755487]
[1770062932580,12.12211995,2343.3,2341.8,1.06755487]
[1770062932947,12.12211995,2343.3,2341.8,1.08466095]
[1770062933154,12.12211995,2343.3,2341.8,1.06755487]
[1770062933354,1.301712,2343.2,2341.9,0.62337743]
[1770062934486,2.36866409,2343.2,2342.0,1.0674637]
[1770062934685,1.301712,2343.2,2341.9,1.06750838]
[1770062935164,13.18899211,2343.3,2341.9,1.06750838]
[1770062935364,13.18899211,2343.3,2341.7,0.896]
[1770062935556,12.12211995,2343.1,2341.9,1.06750497]
[1770062936689,13.1889004,2343.5,2341.8,4.27017926]
[1770062936992,0.895,2343.3,2341.8,4.27017926]
[1770062937161,0.895,2343.3,2341.9,0.62337341]
[1770062937857,1.06675892,2343.6,2341.9,13.28158452]
[1770062938051,1.96175892,2343.6,2341.9,13.28158452]
[1770062938758,1.96175892,2343.6,2342.0,1.0674637]
[1770062939001,14.08387887,2343.6,2342.0,1.0674637]
[1770062939280,12.12211995,2343.4,2342.0,1.0674637]
[1770062939488,0.90875268,2343.3,2342.0,1.0674637]
[1770062940356,13.03087263,2343.3,2341.9,1.06747414]
[1770062940555,0.90875268,2343.2,2341.9,1.06747414]
[1770062940778,1.06696257,2343.1,2341.8,4.27015313]
[1770062940975,0.62435655,2343.0,2341.9,0.94465446]
[1770062941185,0.0011,2343.4,2342.2,0.01710608]
[1770062941387,0.0011,2343.4,2341.9,13.60286557]
[1770062941761,0.0011,2343.4,2342.2,12.65821111]
[1770062942895,0.0011,2343.4,2342.3,1.06732698]
[1770062943296,0.0011,2343.4,2342.5,0.01710608]
[1770062943466,0.0011,2343.4,2342.3,13.70843201]
[1770062943668,0.0011,2343.4,2342.4,1.7994846]